{"text_format":"3","workbook":"xlsx","n_sheets":2,"sheets":["CE.13.Lx EN 14351-1 Fenster","T2"],"not_rendered":{"defined_names":1,"comments":1},"read":"whole","date_system":"1900"}

{"sheet":"CE.13.Lx EN 14351-1 Fenster","index":0,"n_rows":158,"n_cols":8,"rows_kept":158,"merged":[[0,2,0,4],[1,3,1,4],[7,2,7,4],[8,2,8,4],[9,2,9,4],[10,2,10,4],[12,2,12,4],[156,2,156,4]]}
[null,null,"Bestellanzeige CE-Schilder für Fenster (EN 14351-1:2006+A2:2016)",{"$nulls":3},"Stand:","2025-01-30"]
[null,null,"Schildabmessungen [H x B]: ","L1 (ohne Option Logo, ohne DMC) = 24 * 148 [mm]; \nL2 (mit Option DMC oder LOGO) = 24 * 164 [mm]; \nL3 (mit Option DMC und Logo) = 24 * 180 [mm]"]
[]
[null,7,{"$f":"IF(B4=1,'T2'!B2,IF(B4=2,'T2'!B3,IF(B4=3,'T2'!B4,IF(B4=4,'T2'!B5,IF(B4=6,'T2'!B6,IF(B4=7,'T2'!B7,IF(B4=8,'T2'!B8,IF(B4=9,'T2'!B9,IF(B4=11,'T2'!B10)))))))))","v":"An die\nÜberwachungsgemeinschaft für Feuerschutz-, Rauchschutz- \nund Schutzraumabschlüsse Baden-Württemberg e. V.\nSchönestr. 35/1\n70372 Stuttgart"}]
[null,null,{"$f":"IF(B4=1,'T2'!E2,IF(B4=2,'T2'!E3,IF(B4=3,'T2'!E4,IF(B4=4,'T2'!E5,IF(B4=6,'T2'!E6,IF(B4=7,'T2'!E7,IF(B4=8,'T2'!E8,IF(B4=9,'T2'!E9,IF(B4=11,'T2'!E10)))))))))","v":"schilder-bestellungen@feuerschutz-bw.de"}]
[]
[null,null,"Hinweise:"]
[null,"•","Bitte nutzen Sie für jedes Profil-System eine eigenes Bestellformular."]
[null,"•","Dem Besteller ist bekannt, dass die hier gemachten Angaben in seinem Verantwortungsbereich liegen und die Bestellangaben nicht durch den Schildhersteller überprüft werden."]
[null,"•","Dem Besteller ist auch bekannt, dass eine Kennzeichnung der Bauprodukte erst nach erfolgreicher Zertifizierung und Erstellung der Leistungserklärung für das Bauprodukt erfolgen darf. Somit kann die Bestellung frühestens nach durchgeführter Erstinspektion erfolgen."]
[null,"•","Die aus dieser Bestellung resultierende Kennzeichnung entspricht formal der Verordnung 305/2011 (EU-BauPVO) i. V. m. den jeweiligen Produktnormen. Dabei wird der Vorrang der EU-BauPVO vor den harmonisierten Produktnormen berücksichtigt. Für die Kennzeichnung werden die gemäß Anhang III der EU-BauPVO erlaubten sinnvollen Zusammenfassungen genutzt."]
[]
[null,null,"Hiermit bestellen wir verbindlich die nachfolgend durch uns definierten Schilder. "]
[]
[null,null,"Bestelldaten und Bestelltext",{"$nulls":3},"Anzahl Zeichen/Feld","Wo werden Daten benötigt?"]
["@Format",{"$f":"B73+B78+B83+B88+B93+B98+B103+B108+B113+B118+B123+B128+B133+B138+B143+B148","v":0},"Format",{"$f":"IF(E16=\"CE.13.L1\",\"Schildabmessungen = 24 * 148\",IF(E16=\"CE.13.L2\",\"Schildabmessungen = 24 * 164\",IF(E16=\"CE.13.L3\",\"Schildabmessungen = 24 * 180\",\"\")))","v":"Schildabmessungen = 24 * 148"},{"$f":"IF(AND(E55=\"ja\",E56=\"ja\"),\"CE.13.L3\",IF(OR(AND(E55=\"ja\",E56=\"nein\"),AND(E56=\"ja\",E55=\"nein\")),\"CE.13.L2\",\"CE.13.L1\"))","v":"CE.13.L1"},null,null,"M (Sortierkriterium 3)"]
["@Format-alternativ",null,"Alternatives Kurzformat"]
["@Spec",null,"harmonisierte Norm:",null,"EN 14351-1",null,9,"L"]
["@Antragsteller-NB",null,"Für die Zertifizierung eingebundene notifizierte Stelle \nZertifizierungsstelle: gbd = 2397, IBS = 1322",{"$nulls":3},4,"S, DMC"]
["@Produkt1",null,"Verwendungszweck nach Norm, Teil 1",null,"Fenster nach EN 14351-1",null,50,"S, DMC"]
["@Produkt2",null,"Verwendungszweck nach Norm Teil 2",null,"für den Wohnungs- und Nichtwohnungsbau",null,50,"S, DMC"]
["@Produkt3",{"$nulls":5},70,"S, DMC"]
["@Anzahl",null,"Anzahl Schilder (Stück):",{"$nulls":3},4,"M, L"]
["@E-H-Jahr",null,"letzte 2 Ziffern des Jahres, in dem der Produkttyp in Verkehr gebracht wurde (erstmals auf dem Markt bereit gestellt wurde)",{"$nulls":3},2,"S, DMC"]
[]
["@Bestelldatum",null,"Datum der Bestellung",{"$nulls":3},10,"L"]
[]
["@BV",null,"Bauvorhaben (BV) oder Projektnummer oder Auftragsnummer bzw. Kommission/Lager",{"$nulls":3},100,"L"]
[]
["@B-H-Steller1",null,"Name Hersteller",{"$nulls":3},50,"L, S, DMC"]
["@B-H-Steller2"]
["@B-H-PLZ-Ort",null,"PLZ und Ort",{"$nulls":3},34,"L, S, DMC"]
["@B-H-Strasse",null,"Strasse und Hausnummer",{"$nulls":3},"30+4","L, DMC"]
["@B-H-Land",null,"Land (in GROSSBUCHSTABEN)",null,"DEUTSCHLAND",null,23,"L, DMC"]
[null,null,"Kontaktdaten des Herstellers\n(optionale Angaben, z. B. für DMC)"]
["@B-H-Telefon",null,"Telefon Zentrale: ",{"$nulls":3},20,"DMC"]
["@B-H-Email",null,"E-Mail Zentrale:",{"$nulls":3},50,"DMC"]
["@B-H-web",null,"homepage:",{"$nulls":3},50,"DMC"]
["@B-H-Kontakt",null,"Kontaktperson Hersteller ",{"$nulls":3},70]
["@HWK1",null,"Kennnummer Überwachungsgemeinschaft (HWK-Nr. 1)",null,{"$f":"B4","v":7},null,3,"M (Sortierkriterium 2), L"]
["@HWK2",null,"Pflichtfeld: Kennnummer Herstellwerk (HWK-Nr.):",{"$nulls":3},4,"M (Sortierkriterium 2), L"]
[]
["@Zeile1"]
["@Zeile2"]
["@Zeile3"]
["@Zeile4"]
["@Zeile5"]
["@Zeile6"]
["@Zeile7"]
["@Zeile8"]
["@Zeile9"]
["@Zeile10"]
[null,null,{"$f":"IF(AND(E55=\"\",E56=\"\"),\"Optionen (Pflichtfelder!)\",IF(OR(E55=\"\",E56=\"\"),\"Angaben zu DMC und Logo erforderlich!\",\"Optionen (Pflichtfelder!)\"))","v":"Optionen (Pflichtfelder!)"}]
["@Ue-CE-Logo",null,"CE-Logo",null,"3.0",null,null,"S"]
["@DMC",null,"DMC",null,"Nein",null,null,"S, L"]
["@B-H-Logo",null,"Logo Hersteller",null,"Nein",null,null,"S, L"]
["@SchildNr",null,"Schildnummer",null,"ja",null,null,"S, L"]
["@Material",null,"Material:",null,"E",null,null,"L"]
[]
["@Errichter1"]
["@Errichter2"]
["@E-PLZ-Ort"]
["@E-Strasse"]
["@E-Land"]
["@E-Telefon"]
["@E-Email"]
["@E-web",null,null,{"$f":"IF(OR(D68=\"\",D68=\"npd\"),\"Nummer Leistungserklärung fehlt!\",\"\")","v":"Nummer Leistungserklärung fehlt!"}]
["@DoP",null,"Nummer der Leistungserklärung (DoP)",null,{"$f":"IF(D68<>\"\",\"DoP: \"&D68,\"\")","v":""},null,30,"L, S, DMC"]
["@Produkttyp",null,"Produkttyp",{"$f":"IF(AND(OR(D70=\"NPD\",D70=\"\"),D71=\"\"),\"Angabe Produkttyp fehlt!\",\"\")","v":"Angabe Produkttyp fehlt!"},{"$f":"IF(AND(AND(D70<>\"npd\",D70<>\"\"),D71=\"\"),D70,IF(AND(D70=\"npd\",D71<>\"\"),D71,IF(AND(D70<>\"npd\",D71<>\"\"),D71,IF(AND(D70=\"npd\",D71=\"\"),\"\",\"\"))))","v":""},null,25,"L, S, DMC"]
["2",null,"Produkttyp (wenn Profilsystem, dann gleichzeitig Kenncode)\n(z. B. Profilsystem = Satz aus repräsentativen Stufen und Klassen)"]
["3",null,"Produkttyp (z. B. Profilserie oder eigener Handelsname)"]
["@Kenncode",null,"Kenncode des Produkttyps (s. Art. 9 EU-BauPVO)",null,{"$f":"IF(AND(D72<>\"npd\",D72<>\"\"),\"Kenncode: \"&D72,\"\")","v":""},null,25,"S, DMC"]
["@WM1",{"$f":"IF(E73<>\"\",\"1\",\"0\")","v":"0"},{"$nulls":4},15,"S, DMC"]
["2",{"$nulls":5},7]
["3",{"$nulls":5},4]
["4",{"$nulls":5},2]
["5"]
["@WM2",{"$f":"IF(E78<>\"\",\"1\",\"0\")","v":"0"},{"$nulls":4},45,"S, DMC"]
["2"]
["3"]
["4"]
["5"]
["@WM3",{"$f":"IF(E83<>\"\",\"1\",\"0\")","v":"0"},{"$nulls":4},72,"S, DMC"]
["2"]
["3"]
["4"]
["5"]
["@WM4",{"$f":"IF(E88<>\"\",\"1\",\"0\")","v":"0"}]
["2"]
["3"]
["4"]
["5"]
["@WM5",{"$f":"IF(E93<>\"\",\"1\",\"0\")","v":"0"},"Wärmedurchgangskoeffizient UW (Fenster) in W/(m²K)",null,{"$f":"IF(OR(D93=\"\",D93=\"npd\"),\"\",IF(D93>0,\"Uᴡ [W/(m²K)]: \"&TEXT(D93,\"0,0\"),\"\"))","v":""},null,21,"S, DMC"]
["2"]
["3"]
["4"]
["5"]
["@WM6",{"$f":"IF(E98<>\"\",\"1\",\"0\")","v":"0"},"Luftdurchlässigkeit Q",null,{"$f":"IF(OR(D98=\"NPD\",D98=\"\",D98=0),\"\",\"Q: \"&D98)","v":""},null,21,"S, DMC"]
["2"]
["3"]
["4"]
["5"]
["@WM7",{"$f":"IF(E103<>\"\",\"1\",\"0\")","v":"0"},"Strahlungseigenschaften (Wenn, dann beide Werte angeben.)",null,{"$f":"IF(AND(AND(D104<>0,D104<>\"NPD\"),AND(D105<>\"NPD\",D105<>\"\")),\"g: \"&D104&\"     Tv: \"&D105,\"\")","v":""},null,21,"S, DMC"]
["2",null,"Gesamtenergiedurchlassgrad g (anzugeben als 0,XX)"]
["3",null,"Lichttransmissionsgrad ῑv  (anzugeben als 0,XX)"]
["4"]
["5"]
["@WM8",{"$f":"IF(E108<>\"\",\"1\",\"0\")","v":"0"}]
["2"]
["3"]
["4"]
["5"]
["@WM9",{"$f":"IF(E113<>\"\",\"1\",\"0\")","v":"0"},"Widerstand gegen Windlasten (Standardklassen)",null,{"$f":"IF(AND(D114<>\"NPD\",D114<>\"\"),\"Windlast: \"&D114,IF(AND(D113<>\"NPD\",D113<>\"\"),\"Windlast: \"&D113,\"\"))","v":""},null,21,"S, DMC"]
["2",null,"Widerstand gegen Windlasten (über Standardklassen hinausgehender Prüfdruck: AExxxx, BExxxx, CExxxx)"]
["3"]
["4"]
["5"]
["@WM10",{"$f":"IF(E118<>\"\",\"1\",\"0\")","v":"0"},"Tragfähigkeit von Sicherheitsvorrichtungen",null,{"$f":"IF(OR(D118=\"npd\",D118=\"\"),\"\",\"Tragfähigk. 350 N/60 s\")","v":""},null,23,"S, DMC"]
["2"]
["3"]
["4"]
["5"]
["@WM11",{"$f":"IF(E123<>\"\",\"1\",\"0\")","v":"0"},"Schallschutz: RW = RW (C; Ctr) dB \n(wenn, dann RW, C und Ctr angeben)",{"$f":"IF(AND(AND(D124<>\"\",D124<>\"npd\"),OR(D125=\"\",D125=\"npd\"),AND(D126<>\"\",D126<>\"npd\")),\"Zusätzlicher Spektrumanpassungswert erforderlich.\",IF(AND(AND(D124<>\"\",D124<>\"npd\"),AND(D125<>\"\",D125<>\"npd\"),OR(D126=\"\",D126=\"npd\")),\"Zusätzlicher Spektrumanpassungswert erforderlich.\",IF(AND(AND(D124<>\"\",D124<>\"npd\"),OR(D125=\"\",D125=\"npd\"),OR(D126=\"\",D126=\"npd\")),\"Zusätzlich Spektrumanpassungswerte erforderlich.\",IF(AND(OR(D124=\"\",D124=\"npd\"),OR(D125=\"\",D125=\"npd\"),AND(D126<>\"\",D126<>\"npd\")),\"Kein Wert oder alle drei Werte.\",IF(AND(OR(D124=\"\",D124=\"npd\"),OR(D126=\"\",D126=\"npd\"),AND(D125<>\"\",D125<>\"npd\")),\"Kein Wert oder alle drei Werte.\",IF(AND(OR(D124=\"\",D124=\"npd\"),AND(D126<>\"\",D126<>\"npd\"),AND(D125<>\"\",D125<>\"npd\")),\"Schalldämmwert erforderlich.\",\"\"))))))","v":""},{"$f":"IF(AND(AND(AND(D124<>0,D124<>\"npd\"),AND(D125<>\"\",D125<>\"npd\")),AND(D126<>\"\",D126<>\"npd\")),\"Rw [dB]: \"&D124&\" (\"&D125&\"; \"&D126&\")\",\"\")","v":""},null,21,"S, DMC"]
["2",null,"bewertetes Schalldämmmaß RW",{"$nulls":4},"kombiniert zu Rw"]
["3",null,"Spektrumanpassungswert C (Wohnaktivitäten)",{"$nulls":4},"kombiniert zu Rw"]
["4",null,"Spektrumsanpassungswert Ctr (Verkehrslärm)",{"$nulls":4},"kombiniert zu Rw"]
["5"]
["@WM12",{"$f":"IF(E128<>\"\",\"1\",\"0\")","v":"0"},"Schlagregendichtheit ungeschützter Einbau und/oder",null,{"$f":"IF(AND(OR(D128=\"\",D128=\"npd\"),OR(D129=\"\",D129=\"npd\")),\"\",IF(AND(OR(D128=\"npd\",D128=\"\"),AND(D129<>\"\",D129<>\"npd\")),\"Schlagregen: \"&D129,IF(AND(OR(D128<>\"\",D128<>\"npd\"),OR(D129=\"\",D129=\"npd\")),\"Schlagregen: \"&D128,IF(AND(AND(D128<>\"\",D128<>\"npd\"),AND(D129<>\"\",D129<>\"npd\")),\"Schlagregen: \"&D128&\"/\"&D129,\"\"))))","v":""},null,21,"S, DMC"]
["2",null,"Schlagregendichtheit geschützter Einbau"]
["3"]
["4"]
["5"]
["@WM13",{"$f":"IF(E133<>\"\",\"1\",\"0\")","v":"0"},{"$nulls":4},21,"S, DMC"]
["2"]
["3"]
["4"]
["5"]
["@WM14",{"$f":"IF(E138<>\"\",\"1\",\"0\")","v":"0"},{"$nulls":4},21,"S, DMC"]
["2"]
["3"]
["4"]
["5"]
["@WM15",{"$f":"IF(E143<>\"\",\"1\",\"0\")","v":"0"},{"$nulls":4},21,"S, DMC"]
["2"]
["3"]
["4"]
["5"]
["@WM16",{"$f":"IF(E148<>\"\",\"1\",\"0\")","v":"0"},{"$nulls":4},21,"S, DMC"]
["2"]
["3"]
["4"]
["5"]
["@END"]
[{"$nulls":3},"Datenbereich: E16:E129"]
[]
[null,null,"Vermerke AKF/ÜG:"]
[]
[null,null,"?",null,"?"]

{"sheet":"T2","index":1,"n_rows":10,"n_cols":6,"rows_kept":10,"hidden":true}
["Lfd. Nr.","Organisation","Strasse","Ort","E-Mail f. FA, BA, KA","Anmeldefrist"]
[1,"An die\nÜberwachungsgemeinschaft für Feuerschutz-, Rauchschutz- \nund Schutzraumabschlüsse Berlin/Brandenburg e. V.\nMahlsdorfer Str. 61b\n15366 Hoppegarten","Mahlsdorfer Str. 61 b","15366 Hoppegarten","feuerschutz-berlin@t-online.de ","Bitte melden Sie Ihre Fertigung mindestens 2 Wochen vor Produktionsbeginn an."]
[2,"An den\nArbeitskreis der Überwachungsgemeinschaften für Feuer-\nschutz-, Rauchschutz- und Schutzraumabschlüsse e. V.\nGraf-Spee-Str. 13\n45133 Essen","Graf-Spee-Str. 13","45133 Essen","schilder-bestellung@akf-ev.de ","Bitte melden Sie Ihre Fertigung mindestens 4 Wochen vor Produktionsbeginn an."]
[3,"An die \nÜberwachungsgemeinschaft Feuerschutztüren \nNiedersachsen/Bremen/Sachsen-Anhalt e. V.\nHeidering 29\n30625 Hannover","Heidering 29","30625 Hannover","schilder@feuerschutztueren.com","Bitte melden Sie Ihre Fertigung mindestens 2 Wochen vor Produktionsbeginn an."]
[4,"An die\nÜberwachungsgemeinschaft  West e. V.\nGraf-Spee-Str. 13\n45133 Essen","Graf-Spee-Str. 13","45133 Essen","schilder-bestellung@nrw.ueg-ev.de ","Bitte melden Sie Ihre Fertigung mindestens 4 Wochen vor Produktionsbeginn an."]
[6,"An die\nÜberwachungsgemeinschaft  West e. V.\nGraf-Spee-Str. 13\n45133 Essen","Graf-Spee-Str. 13","45133 Essen","schilder-bestellung@nrw.ueg-ev.de ","Bitte melden Sie Ihre Fertigung mindestens 4 Wochen vor Produktionsbeginn an."]
[7,"An die\nÜberwachungsgemeinschaft für Feuerschutz-, Rauchschutz- \nund Schutzraumabschlüsse Baden-Württemberg e. V.\nSchönestr. 35/1\n70372 Stuttgart","Schönestr. 35/1","70372 Stuttgart","schilder-bestellungen@feuerschutz-bw.de","Bitte melden Sie Ihre Fertigung mindestens 2 Wochen vor Produktionsbeginn an."]
[8,"An die\nÜberwachungsgemeinschaft für Feuerschutz-, Rauchschutz- \nund Schutzraumabschlüsse Bayern e. V.\nNeuburgstr. 1c\n83620 Feldkirchen-Westerham","Neuburgstr. 1c","83620 Feldkirchen-Westerham","bestellungen@feuerschutz-bayern.de","Bitte melden Sie Ihre Fertigung mindestens 2 Wochen vor Produktionsbeginn an."]
[9,"An die\nÜberwachungsgemeinschaft für Feuerschutz-, Rauchschutz- \nund Schutzraumabschlüsse Sachsen e. V.\nBreitscheidstr. 45\n01156 Dresden","Breitscheidstr. 45","01156 Dresden","bestellung@feuerschutzinfo.de","Bitte melden Sie Ihre Fertigung mindestens 2 Wochen vor Produktionsbeginn an."]
[11,"An die\nÜberwachungsgemeinschaft NORD für Feuerschutz-, Rauch-\nschutz- und Schutzraumabschüsse der Länder Schleswig-Holstein, Mecklenburg-Vorpommern u. Hamburg e. V.\nRendsburger Landstr. 211\n24113 Kiel","Rendsburger Landstr. 211","24113 Kiel","info@feuerschutz-nord.de","Bitte melden Sie Ihre Fertigung mindestens 2 Wochen vor Produktionsbeginn an."]